bitfinex/quotes_ETHUSD_20220213
["timestamp","ask_amount","ask_price","bid_price","bid_amount"]
[1644754869777,0.65680696,2938.1,2937.9,1.70204]
[1644754869978,0.0039225,2938.0,2937.9,1.70204]
[1644754870178,0.65680696,2938.1,2937.9,1.70204]
[1644754870378,0.0039225,2938.0,2937.9,1.70204]
[1644754870584,0.65680696,2938.1,2937.9,1.70204]
[1644754870787,0.11628313,2938.0,2937.9,1.70204]
[1644754870984,0.12334479,2938.1,2937.9,1.70204]
[1644754871182,0.0039225,2938.0,2937.9,1.70204]
[1644754871382,0.77309009,2938.1,2937.9,1.70204]
[1644754871582,0.76916759,2938.1,2937.9,0.15707402]
[1644754871983,0.75818343,2938.1,2937.9,0.15707402]
[1644754872185,0.76916751,2938.1,2937.9,1.00810402]
[1644754872485,0.76916751,2938.1,2938.0,1.70199]
[1644754873127,0.75818343,2938.1,2938.0,1.70199]
[1644754873522,0.11236063,2938.1,2938.0,1.70199]
[1644754873723,0.75818343,2938.1,2938.0,1.70199]
[1644754873923,2.20657256,2938.1,2938.0,1.70199]
[1644754874325,1.56074976,2938.1,2938.0,2.70199]
[1644754874524,1.56074976,2938.1,2938.0,2.30199]
[1644754874724,1.56074976,2938.1,2938.0,2.70199]
[1644754875024,1.56074976,2938.1,2938.0,1.72479625]
[1644754876229,1.56074976,2938.1,2938.0,0.02280625]
[1644754878673,2.05914976,2938.1,2938.0,0.02280625]
[1644754880531,2.05914976,2938.1,2937.9,1.37196566]
[1644754880729,1.56074976,2938.0,2937.9,1.37196566]
[1644754880929,1.56074976,2938.0,2937.9,0.85111]
[1644754883428,2.20657256,2938.0,2937.9,0.85111]
[1644754884872,1.56074976,2938.0,2937.9,0.85111]
[1644754888826,1.56074976,2938.0,2937.7,0.54783713]
[1644754889030,1.56467226,2937.9,2937.7,0.6]
[1644754889225,1.56074976,2937.8,2937.6,3.64558298]
[1644754889424,1.56074976,2937.7,2937.6,7.04960298]
[1644754890326,1.56074976,2937.7,2937.6,8.04960298]
[1644754890931,1.56074976,2937.7,2937.6,6.96249639]
[1644754891131,1.56074976,2937.7,2937.6,7.96249639]
[1644754891535,1.56074976,2937.7,2937.6,6.71756622]
[1644754891776,1.56074976,2937.7,2937.6,3.75908983]
[1644754891976,1.56074976,2937.7,2937.6,6.70670718]
[1644754892177,1.56074976,2937.7,2937.6,3.75908983]
[1644754893180,1.56467226,2937.7,2937.6,4.26178756]
[1644754893379,1.56074976,2937.7,2937.6,4.26178756]
[1644754893780,1.56074976,2937.7,2937.6,3.96178756]
[1644754894184,1.56074976,2937.7,2937.6,2.20470773]
[1644754894383,1.56467226,2937.7,2937.6,1.70201]
[1644754894580,2.20976952,2937.7,2937.6,1.70201]
[1644754894780,2.20584702,2937.7,2937.6,1.70201]
[1644754895437,1.56074976,2937.7,2937.6,1.70201]
[1644754895832,4.98348965,2937.7,2937.6,1.70201]
[1644754896035,4.98348965,2937.7,2937.5,3.4]
[1644754896233,0.11236063,2936.8,2936.6,0.25]
[1644754896437,0.11236063,2936.6,2936.2,3.07012148]
[1644754896635,1.56074976,2936.5,2936.4,1.70277]
[1644754897234,1.56074976,2936.5,2936.4,2.30277]
[1644754897534,1.56074976,2936.5,2936.4,3.15409]
[1644754897933,1.56074976,2936.5,2936.4,4.15409]
[1644754899778,1.56074976,2936.5,2936.4,4.32419]
[1644754900682,1.57301157,2936.5,2936.4,4.32419]
[1644754902081,1.57301157,2936.5,2936.4,4.15409]
[1644754903126,1.57301157,2936.5,2936.4,7.55409]
[1644754903733,0.01226181,2936.5,2936.4,10.67737285]
[1644754903931,1.57320445,2936.5,2936.4,10.67737285]
[1644754906136,1.57320445,2936.5,2936.4,7.55409]
[1644754907377,1.57320445,2936.5,2936.4,10.55249425]
[1644754910085,1.57320445,2936.5,2936.4,7.55409]
[1644754910542,1.57320445,2936.5,2936.4,10.56015129]
[1644754913545,1.57320445,2936.5,2936.4,7.55409]
[1644754916982,1.57160513,2936.5,2936.4,7.55409]
[1644754917783,1.57160513,2936.5,2936.4,10.82158037]
[1644754918631,0.01066249,2936.5,2936.4,10.82158037]
[1644754919031,0.12302312,2936.5,2936.4,10.82158037]
[1644754919232,1.57160899,2936.5,2936.4,10.82158037]
[1644754919634,0.12302312,2936.5,2936.4,10.82158037]
[1644754920637,1.57158022,2936.5,2936.4,10.82158037]
[1644754921239,1.57158022,2936.5,2936.4,7.55409]
[1644754922396,1.57158022,2936.5,2936.4,10.59623199]
[1644754923185,0.12302312,2936.5,2936.4,10.59623199]
[1644754923586,0.01066249,2936.5,2936.4,10.59623199]
[1644754927736,1.57161215,2936.5,2936.4,7.55409]
[1644754928232,1.57161215,2936.5,2936.4,10.54587507]
[1644754928433,1.57161215,2936.5,2936.4,7.55409]
[1644754930389,1.57161215,2936.5,2936.4,5.85132]
[1644754932492,1.57161215,2936.5,2936.4,5.60132]
[1644754932695,1.57161215,2936.5,2936.4,4.25132]
[1644754939290,1.57046249,2936.5,2936.4,4.25132]
[1644754940189,1.5730738,2936.5,2936.4,4.25132]
[1644754942946,1.5730738,2936.5,2936.4,5.25132]
[1644754943147,1.5730738,2936.5,2936.4,8.86921923]
[1644754943552,0.0241169,2936.6,2936.5,4.45]
[1644754943748,0.0241169,2936.6,2936.5,8.1601211]
[1644754943749,0.01099208,2936.6,2936.5,8.1601211]
[1644754943950,0.64640751,2937.4,2936.7,0.45996398]
[1644754944190,0.4984,2937.3,2936.8,5.40314985]
[1644754944393,1.18876642,2937.3,2936.8,6.00314985]
[1644754944593,1.18876642,2937.3,2936.9,1.0]
[1644754945292,1.14480751,2937.3,2936.9,2.70212]
[1644754945492,0.00609527,2937.2,2936.9,2.70212]
[1644754945692,0.00609527,2937.2,2937.0,0.3]
[1644754945892,0.00609527,2937.2,2937.0,1.70233]
[1644754946292,0.00609527,2937.2,2937.1,0.3]
[1644754946492,0.4984,2937.3,2937.1,0.3]
[1644754946691,0.4984,2937.3,2937.1,1.15117]
[1644754946692,0.010991,2937.2,2937.1,1.15117]
[1644754947795,0.64640751,2937.2,2937.1,0.85117]
[1644754948046,1.15579842,2937.3,2937.1,0.3]
[1644754948646,1.15579842,2937.3,2937.0,1.15129]
[1644754948647,1.15579842,2937.3,2937.0,0.85129]
[1644754948843,0.64640751,2937.2,2937.0,0.85129]
[1644754949043,0.64640751,2937.2,2937.1,0.85115]
[1644754949643,0.64640751,2937.2,2937.1,0.80033357]
[1644754950650,0.64640751,2937.2,2937.1,0.82250631]
[1644754951451,1.15579842,2937.3,2937.1,0.82250631]
[1644754951891,0.50939091,2937.3,2937.1,0.82250631]
[1644754952091,0.50939091,2937.3,2937.1,1.12250631]
[1644754952490,0.4984,2937.3,2937.1,1.12250631]
[1644754952692,0.50939083,2937.3,2937.1,1.12250631]
[1644754953693,0.4984,2937.3,2937.1,1.12250631]
[1644754953896,0.50939083,2937.3,2937.1,1.12250631]
[1644754954394,0.50939083,2937.3,2937.1,4.4095395]
[1644754954793,0.4984,2937.3,2937.1,4.4095395]
[1644754954993,0.50939083,2937.3,2937.1,4.4095395]
[1644754955852,0.50939083,2937.3,2937.2,3.00127627]
[1644754956046,0.4984,2937.3,2937.2,3.00127627]
[1644754956347,0.50939083,2937.3,2937.2,3.00127627]
[1644754957246,0.4984,2937.3,2937.2,3.00127627]
[1644754957748,0.4984,2937.3,2937.1,1.40033357]
[1644754957948,0.4984,2937.3,2937.1,5.42118555]
[1644754958350,0.4984,2937.3,2937.1,2.40033357]
[1644754958549,0.4984,2937.3,2937.1,5.38013929]
[1644754958751,0.50939083,2937.3,2937.1,5.38456813]
[1644754958950,0.50939083,2937.3,2937.1,2.40033357]
[1644754959597,0.4984,2937.3,2937.1,0.6]
[1644754959796,0.4984,2937.3,2937.1,0.3]
[1644754959996,0.50939083,2937.3,2937.1,0.3]
[1644754960197,0.50939083,2937.3,2937.2,0.02216755]
[1644754960801,0.4984,2937.3,2937.2,3.42216755]
[1644754961200,1.14480751,2937.3,2937.2,3.42216755]
[1644754963549,2.59331866,2937.3,2937.2,3.42216755]
[1644754965151,1.94691115,2937.3,2937.2,3.4]
[1644754965856,1.94691115,2937.3,2937.2,2.15499158]
[1644754966258,1.94691115,2937.3,2937.2,3.15499158]
[1644754967302,1.94691115,2937.3,2937.2,3.45499158]
[1644754968805,1.94691115,2937.3,2937.2,2.15499158]
[1644754969004,1.94691115,2937.3,2937.2,2.45499158]
[1644754969605,1.94691115,2937.3,2937.2,2.15499158]
[1644754971849,2.29985115,2937.3,2937.2,2.15499158]
[1644754972848,2.46995115,2937.3,2937.2,2.15499158]
[1644754973048,1.61861115,2937.3,2937.2,2.15499158]
[1644754974052,2.46999115,2937.3,2937.2,2.15499158]
[1644754975698,1.61861115,2937.3,2937.2,2.15499158]
[1644754976802,1.44851115,2937.3,2937.2,2.15499158]
[1644754977947,2.09559705,2937.3,2937.2,2.15499158]
[1644754978137,1.44851115,2937.3,2937.2,2.15499158]
[1644754983019,2.29990115,2937.3,2937.2,2.15499158]
[1644754983500,1.44851115,2937.3,2937.2,2.15499158]
[1644754984104,2.29989115,2937.3,2937.2,2.15499158]
[1644754985945,2.29989115,2937.3,2937.2,0.60981407]
[1644754989593,1.44851115,2937.3,2937.2,0.60981407]
[1644754990396,2.0958063,2937.3,2937.2,0.60981407]
[1644754991799,2.09583697,2937.3,2937.2,0.60981407]
[1644754993047,2.09583697,2937.3,2937.2,1.46105407]
[1644754993245,1.44851115,2937.3,2937.2,1.76105407]
[1644754993448,1.44851115,2937.3,2937.2,4.84671659]
[1644754993644,1.44851115,2937.3,2937.2,1.76105407]
[1644754994044,1.44851115,2937.3,2937.2,4.74416019]
[1644754994848,1.44851115,2937.3,2937.2,1.76105407]
[1644754995250,1.44851115,2937.3,2937.2,1.78340397]
[1644754995450,1.44851115,2937.3,2937.2,1.48340397]
[1644754995753,1.14572582,2937.4,2937.2,1.48340397]
[1644754995950,1.44851115,2937.3,2937.2,0.63216397]
[1644754996149,1.44851115,2937.3,2937.2,0.93216397]
[1644754996350,1.44851115,2937.3,2937.2,0.63216397]
[1644754996991,1.44851115,2937.3,2937.2,1.48341397]
[1644754998399,1.44851115,2937.3,2937.2,4.52249547]
[1644754998796,1.44851115,2937.3,2937.2,1.48341397]
[1644755000199,1.44851115,2937.3,2937.2,1.46106407]
[1644755001246,1.44851115,2937.3,2937.2,0.60981407]
[1644755002948,1.44851115,2937.3,2937.2,1.46107407]
[1644755004799,1.44851115,2937.3,2937.2,0.60981407]
[1644755006000,0.91276982,2937.0,2936.8,2.00251]
[1644755006204,1.44851115,2936.9,2936.8,2.00251]
[1644755006400,1.44851115,2936.9,2936.8,3.00251]
[1644755008257,1.26707399,2936.9,2936.8,3.00251]
[1644755009250,1.26707399,2936.9,2936.8,3.30251]
[1644755010752,1.28493373,2936.9,2936.8,3.30251]
[1644755010954,1.28493373,2936.9,2936.8,6.29072736]
[1644755011992,0.01785974,2936.9,2936.8,6.29072736]
[1644755015298,0.94241461,2937.0,2936.8,6.29072736]
[1644755015299,0.0439801,2937.5,2936.9,4.4678]
[1644755015553,0.0439801,2937.5,2937.0,4.35105]
[1644755015752,0.0439801,2937.5,2937.1,0.3]
[1644755016053,2.31827333,2937.7,2937.1,0.7432]
[1644755016253,2.31827333,2937.7,2937.3,0.31396838]
[1644755016454,0.0039225,2938.0,2937.5,0.85079]
[1644755016652,0.64732582,2938.3,2937.5,0.85079]
[1644755016653,0.0039225,2938.2,2937.5,0.85079]
[1644755016853,0.0039225,2938.2,2937.5,2.45079]
[1644755017150,0.1701,2938.6,2937.5,2.45079]
[1644755017151,0.65124832,2938.5,2937.5,2.45079]
[1644755017353,0.0039225,2938.3,2937.5,5.00319]
[1644755017551,0.01101791,2938.0,2937.5,5.00319]
[1644755017754,0.01101791,2938.0,2937.6,4.73375553]
[1644755017951,0.01101791,2938.0,2937.7,1.8508]
[1644755018151,0.01101791,2938.0,2937.8,3.36637931]
[1644755018351,0.01101791,2938.0,2937.9,1.0]
[1644755018552,0.0039225,2938.3,2937.9,4.2385152]
[1644755018753,0.01101782,2938.0,2937.9,5.0893552]
[1644755018961,0.01101782,2938.0,2937.9,6.0346552]
[1644755019198,0.01101782,2938.0,2937.9,7.44697]
[1644755019399,0.04406468,2938.5,2938.0,4.45]
[1644755019598,0.0039225,2938.5,2937.9,7.30464]
[1644755019799,2.96457558,2938.8,2938.3,0.85066]
[1644755019800,0.0039225,2938.7,2938.3,0.85066]
[1644755020202,0.0039225,2938.7,2938.4,0.85067]
[1644755020403,0.0039225,2938.7,2938.4,5.35067]
[1644755020603,0.0039225,2939.0,2938.4,5.35067]
[1644755021006,0.65124832,2939.2,2938.4,1.85077]
[1644755021206,0.65124832,2939.2,2938.6,0.85058]
[1644755021403,0.65124832,2939.2,2938.5,1.70115]
[1644755021404,0.64732582,2939.1,2938.4,1.0]
[1644755021607,0.0039225,2939.0,2938.5,0.3]
[1644755021804,0.0039225,2939.0,2938.3,0.6]
[1644755022003,0.0039225,2939.0,2938.2,0.1701]
[1644755022004,0.0039225,2939.0,2938.2,3.9701]
[1644755022203,0.1740225,2939.1,2938.6,0.85078]
[1644755022407,0.01101656,2938.8,2938.6,0.85078]
[1644755023342,0.00395585,2939.1,2938.6,0.85078]
[1644755023544,0.01101648,2938.8,2938.6,0.85078]
[1644755023942,0.01101648,2938.8,2938.7,2.99984957]
[1644755024542,0.00395585,2939.1,2938.8,0.85076]
[1644755024743,0.01101639,2938.9,2938.8,0.85076]
[1644755025745,0.00395585,2939.1,2938.8,0.85076]
[1644755025947,0.01101622,2939.0,2938.8,0.85076]
[1644755026146,0.69330766,2938.7,2938.6,0.3]
[1644755026346,0.69330766,2938.7,2938.5,2.30151]
[1644755026545,0.69330766,2938.7,2938.6,3.02735891]
[1644755026796,0.69330766,2938.7,2938.6,2.998706]
[1644755027093,0.69330766,2938.7,2938.5,2.00151]
[1644755027293,0.69330766,2938.7,2938.6,0.85075]
[1644755027894,0.69330766,2938.7,2938.6,1.15075]
[1644755028093,0.69330766,2938.7,2938.6,4.25075]
[1644755028293,0.69330766,2938.7,2938.6,3.4]
[1644755030302,0.54330766,2938.7,2938.6,3.4]
[1644755030545,0.54330766,2938.7,2938.6,3.43057596]
[1644755037299,0.54330766,2938.7,2938.6,3.73057596]
[1644755038753,0.54330766,2938.7,2938.6,3.43057596]
[1644755039957,1.69694722,2938.7,2938.6,3.43057596]
[1644755041361,0.54330766,2938.7,2938.6,3.43057596]
[1644755042693,1.60578646,2938.7,2938.6,3.43057596]
[1644755044693,0.54330766,2938.7,2938.6,3.43057596]
[1644755046049,0.54330766,2938.7,2938.6,1.88642055]
[1644755046449,0.54330766,2938.7,2938.6,3.58795055]
[1644755046651,0.54330766,2938.7,2938.6,8.0339471]
[1644755046851,0.54330766,2938.7,2938.6,8.3339471]
[1644755047852,0.54330766,2938.7,2938.6,8.50603839]
[1644755048051,0.54330766,2938.7,2938.6,8.3339471]
[1644755048651,0.54330766,2938.7,2938.6,8.5040471]
[1644755049196,0.54330766,2938.7,2938.6,8.67613839]
[1644755050603,0.55524606,2938.7,2938.6,8.67613839]
[1644755051105,0.64732582,2940.3,2938.6,8.67613839]
[1644755051106,1.22010599,2941.1,2939.1,0.85015]
[1644755051307,1.02928486,2942.2,2941.0,5.0]
[1644755051513,1.02928486,2942.2,2941.4,5.0]
[1644755051514,0.92828117,2941.9,2941.4,5.0]
[1644755051710,1.02928486,2942.7,2941.1,4.67195584]
[1644755051711,0.04336453,2942.1,2941.8,0.01279628]
[1644755051904,1.71592203,2942.7,2941.8,0.01279628]
[1644755051905,1.44617974,2942.0,2941.9,6.7983]
[1644755052105,1.4460573,2942.3,2942.1,0.83081584]
[1644755052309,1.28814671,2943.5,2942.1,0.83081584]
[1644755052310,0.64407336,2943.6,2942.2,4.33081584]
[1644755052508,0.1698,2943.8,2942.2,4.33081584]
[1644755052509,1.44570123,2943.5,2942.2,4.33081584]
[1644755052710,0.64407336,2943.9,2942.4,0.83081584]
[1644755052969,0.64407336,2943.9,2942.5,0.83081584]
[1644755053161,0.04092649,2944.2,2942.7,1.68002584]
[1644755053361,0.6698,2943.9,2942.8,0.83081584]
[1644755053560,5.20858088,2944.1,2942.8,0.83081584]
[1644755053763,4.99842281,2943.2,2942.0,0.17209129]
[1644755053960,4.45,2943.5,2941.8,3.75]
[1644755053961,0.9574854,2942.6,2942.1,10.2979]
[1644755054161,0.01265545,2943.0,2942.1,6.7979]
[1644755054360,4.45,2943.5,2942.1,6.7979]
[1644755054361,0.1698,2942.9,2942.2,3.5]
[1644755054561,0.1698,2943.4,2942.2,3.5]
[1644755054759,0.1698,2943.4,2942.2,3.8]
[1644755055164,0.5,2943.2,2942.2,4.1]
[1644755055361,1.16054882,2942.7,2942.2,4.1]
[1644755055563,1.16054882,2942.7,2942.1,6.7979]
[1644755055764,3.5,2942.6,2942.1,6.7979]
[1644755055966,0.98951051,2942.2,2942.1,6.7979]
[1644755056164,1.15931051,2942.2,2942.1,6.7979]
[1644755056367,0.98951051,2942.2,2942.1,6.7979]
[1644755057410,1.15931051,2942.2,2942.1,6.7979]
[1644755058010,0.1698,2942.2,2942.1,6.7979]
[1644755059311,1.24429855,2942.2,2942.1,6.7979]
[1644755060751,1.07449855,2942.2,2942.1,6.7979]
[1644755060953,1.11015788,2942.2,2942.1,6.7979]
[1644755061254,1.11015788,2942.2,2942.1,10.1979]
[1644755062254,0.03565933,2942.2,2942.1,10.1979]
[1644755063257,0.22847137,2942.2,2942.1,10.1979]
[1644755064058,0.39827137,2942.2,2942.1,3.4]
[1644755064311,0.19281204,2941.4,2941.1,3.5]
[1644755064508,0.19281204,2941.4,2941.0,0.27639994]
[1644755064709,0.19281204,2941.4,2940.9,0.8506]
[1644755065109,0.19281204,2941.4,2940.9,1.1506]
[1644755065309,0.19281204,2941.4,2940.9,0.8506]
[1644755065513,0.01102236,2941.3,2940.6,3.5]
[1644755065712,0.01102236,2941.3,2940.6,3.8]
[1644755065910,0.01102236,2941.3,2940.7,1.85009]
[1644755066110,0.01102236,2941.3,2940.7,2.02009]
[1644755066512,0.19281204,2942.0,2940.8,3.03590146]
[1644755066712,0.00397127,2941.9,2940.9,0.1698]
[1644755066911,0.00397127,2941.9,2940.9,1.1698]
[1644755066912,0.01102261,2941.1,2940.9,1.1698]
[1644755067110,0.01102261,2941.1,2941.0,4.83505571]
[1644755067311,0.01102261,2941.1,2941.0,6.43505571]
[1644755067611,0.01102261,2941.1,2941.0,6.44415571]
[1644755067813,0.00397127,2941.6,2941.0,3.30854]
[1644755068048,0.01102253,2941.2,2941.0,3.30854]
[1644755068245,0.01102253,2941.2,2941.0,2.30854]
[1644755068650,0.01102253,2941.2,2941.0,5.36972618]
[1644755068854,0.01102253,2941.2,2941.0,2.30854]
[1644755069055,0.00397127,2941.6,2941.0,2.30854]
[1644755069253,0.01102244,2941.2,2941.0,2.30854]
[1644755070256,0.00397127,2941.6,2941.0,2.30854]
[1644755070456,0.01102244,2941.2,2941.0,2.30854]
[1644755071055,0.0462141,2941.2,2941.0,2.30854]
[1644755071459,0.03519166,2941.2,2941.0,2.30854]
[1644755071706,0.0462141,2941.2,2941.0,3.30854]
[1644755072106,0.0462141,2941.2,2941.0,6.70854]
[1644755072507,0.03519166,2941.2,2941.0,6.70854]
[1644755072908,0.0462141,2941.2,2941.0,6.70854]
[1644755073109,0.0462141,2941.2,2941.0,3.30854]
[1644755073709,0.03519166,2941.2,2941.0,3.30854]
[1644755074110,0.0462141,2941.2,2941.0,3.30854]
[1644755074809,0.0462141,2941.2,2941.0,1.70854]
[1644755075108,0.03519166,2941.2,2941.0,1.70854]
[1644755075314,0.0462141,2941.2,2941.0,1.70854]
[1644755076156,0.03519166,2941.2,2941.0,1.70854]
[1644755076354,0.0462141,2941.2,2941.0,1.70854]
[1644755077353,0.03519166,2941.2,2941.0,1.70854]
[1644755077553,0.0462141,2941.2,2941.0,1.70854]
[1644755077855,0.0462141,2941.2,2941.1,3.05268344]
[1644755078053,0.0462141,2941.2,2941.1,3.07248858]
[1644755078254,0.0462141,2941.2,2941.1,3.08158858]
[1644755078654,0.03519166,2941.2,2941.1,3.08158858]
[1644755080504,0.05278748,2941.2,2941.1,3.08158858]
[1644755080907,0.05278748,2941.2,2941.1,4.08158858]
[1644755082607,0.05278748,2941.2,2941.1,1.0091]
[1644755082807,0.05278748,2941.2,2941.1,4.95435664]
[1644755083353,0.05278748,2941.2,2941.1,1.9091]
[1644755084151,0.05278748,2941.2,2941.1,4.94001966]
[1644755084354,0.05278748,2941.2,2941.1,1.9091]
[1644755084552,0.05278748,2941.2,2941.1,4.92043651]
[1644755085558,0.03519166,2941.2,2941.1,5.2625278]
[1644755085758,0.17397127,2942.0,2941.2,4.45]
[1644755085958,0.17397127,2942.0,2941.3,6.49924]
[1644755086261,0.04408282,2941.7,2941.4,0.1698]
[1644755086457,0.17397127,2942.0,2941.4,0.1698]
[1644755086458,0.17397127,2942.0,2941.5,4.45]
[1644755086703,0.17397127,2942.0,2941.6,0.3082]
[1644755086905,0.17397127,2942.0,2941.8,2.54863]
[1644755087105,0.17,2942.0,2941.8,2.71843]
[1644755087306,0.00397127,2942.1,2941.8,1.30625321]
[1644755087607,0.00397127,2942.1,2941.8,1.60625321]
[1644755087807,0.00397127,2942.1,2941.8,2.45602321]
[1644755088208,0.00397127,2942.1,2941.9,3.85384011]
[1644755088408,0.19281204,2942.2,2941.9,3.85384011]
[1644755088607,0.00397127,2942.1,2941.9,0.84976]
[1644755088809,0.19281204,2942.2,2941.9,0.84976]
[1644755089007,0.00397127,2942.1,2941.9,0.84976]
[1644755089206,0.19281204,2942.2,2942.0,0.84963]
[1644755089407,0.19281204,2942.2,2942.0,1.84963]
[1644755089408,0.00397127,2942.1,2942.0,1.84963]
[1644755089608,0.0060229,2942.1,2942.0,5.53715213]
[1644755089908,0.0060229,2942.1,2942.0,5.67315213]
[1644755090109,0.0060229,2942.1,2942.0,5.68785213]
[1644755090457,0.19281204,2942.2,2942.1,4.75]
[1644755090650,0.00397127,2942.8,2942.1,4.2838655]
[1644755090651,0.19678331,2942.8,2942.1,4.2838655]
[1644755090852,0.19678331,2942.8,2942.4,0.84946]
[1644755091051,0.19678331,2942.8,2942.5,3.30864698]
[1644755091252,0.19281204,2942.8,2942.5,3.60864698]
[1644755091554,0.19281204,2942.8,2942.6,1.0]
[1644755091754,0.19281204,2942.8,2942.6,1.3]
[1644755091951,0.19281204,2942.7,2942.6,3.8483]
[1644755092352,1.63858481,2942.7,2942.6,3.8483]
[1644755092551,0.19281204,2942.7,2942.6,3.8483]
[1644755092751,1.63860422,2942.7,2942.6,3.8483]
[1644755093152,1.63858987,2942.7,2942.6,3.8483]
[1644755093553,1.63858987,2942.7,2942.6,5.7483]
[1644755093951,1.63858987,2942.7,2942.6,5.7574]
[1644755094400,1.63858987,2942.7,2942.6,2.75853]
[1644755095101,1.63858987,2942.7,2942.6,1.9091]
[1644755095301,2.2866345,2942.7,2942.6,1.9091]
[1644755095505,2.28266323,2942.7,2942.6,1.9091]
[1644755095705,2.28266323,2942.7,2942.6,1.93244206]
[1644755096105,1.63858987,2942.7,2942.6,1.93244206]
[1644755097107,0.83884693,2942.7,2942.6,1.93244206]
[1644755097304,2.28462476,2942.7,2942.6,1.93244206]
[1644755098152,1.63858987,2942.7,2942.6,1.93244206]
[1644755100052,0.83959798,2942.7,2942.6,1.93244206]
[1644755100253,0.19281204,2942.7,2942.6,1.93244206]
[1644755100453,0.83969372,2942.7,2942.6,1.93244206]
[1644755100658,0.19281204,2942.7,2942.6,1.93244206]
[1644755100857,1.63858987,2942.7,2942.6,1.93244206]
[1644755101056,2.28547248,2942.7,2942.6,1.93244206]
[1644755101257,1.63858987,2942.7,2942.6,1.93244206]
[1644755103498,1.63858987,2942.7,2942.6,0.03244206]
[1644755105554,1.63858987,2942.7,2942.6,3.43244206]
[1644755107059,1.63858987,2942.7,2942.6,4.03244206]
[1644755107357,1.63858987,2942.7,2942.6,3.49030112]
[1644755108957,1.63858987,2942.7,2942.6,2.49030112]
[1644755110604,1.63858987,2942.7,2942.6,4.78926112]
[1644755111805,1.63858987,2942.7,2942.6,4.18926112]
[1644755113648,1.63858987,2942.7,2942.6,4.78926112]
[1644755114951,1.63858987,2942.7,2942.6,4.18926112]
[1644755118912,1.63858987,2942.7,2942.6,2.49030112]
[1644755119112,1.64256114,2942.7,2942.6,2.49030112]
[1644755119313,1.63858987,2942.7,2942.6,2.49030112]
[1644755119512,1.53858987,2942.7,2942.6,2.49030112]
[1644755120553,1.53858987,2942.7,2942.6,3.34003112]
[1644755120754,1.53858987,2942.7,2942.6,2.49030112]
[1644755121354,1.53858987,2942.7,2942.6,3.34000112]
[1644755123756,1.53858987,2942.7,2942.0,0.1698]
[1644755123757,0.94731998,2942.4,2942.0,0.1698]
[1644755124057,2.19012893,2942.3,2942.0,0.1698]
[1644755124303,0.09281204,2942.1,2942.0,0.1698]
[1644755124505,1.72785257,2942.1,2942.0,0.1698]
[1644755124702,1.72785257,2942.1,2942.0,1.01969]
[1644755125306,1.72785257,2942.1,2942.0,0.84989]
[1644755127306,1.72785257,2942.1,2941.9,1.00710192]
[1644755127507,0.2892627,2942.0,2941.9,1.00710192]
[1644755128156,0.2892627,2942.0,2941.9,4.40710192]
[1644755128358,0.2892627,2942.0,2941.9,5.00710192]
[1644755128558,0.2892627,2942.0,2941.9,6.00710192]
[1644755128759,0.2892627,2942.0,2941.9,9.02052042]
[1644755129559,0.2892627,2942.0,2941.9,6.00710192]
[1644755129759,0.2892627,2942.0,2941.9,4.40710192]
[1644755138053,0.2892627,2942.0,2941.9,4.70710192]
[1644755139302,0.2892627,2942.0,2941.9,7.83045323]
[1644755139503,0.2892627,2942.0,2941.9,8.83045323]
[1644755139703,0.2892627,2942.0,2941.9,9.13045323]
[1644755139904,0.2892627,2942.0,2941.9,4.40710192]
[1644755140305,0.2892627,2942.0,2941.9,7.41197108]
[1644755140511,0.2892627,2942.0,2941.9,4.40710192]
[1644755142108,0.2892627,2942.0,2941.9,5.00710192]
[1644755143150,0.2892627,2942.0,2941.9,6.00710192]
[1644755144152,0.2892627,2942.0,2941.9,5.00710192]
[1644755144352,0.2892627,2942.0,2941.9,4.70710192]
[1644755144551,1.73520821,2942.0,2941.9,4.70710192]
[1644755147601,1.73520821,2942.0,2941.9,4.40710192]
[1644755148202,1.73520821,2942.0,2941.9,4.70710192]
[1644755151155,1.73401425,2942.0,2941.9,4.70710192]
[1644755151755,2.79424994,2942.0,2941.9,4.40710192]
[1644755151959,2.79424994,2942.0,2941.7,1.09425932]
[1644755151960,0.28806874,2941.8,2941.7,1.09425932]
[1644755152157,0.28806874,2941.8,2941.2,1.1281]
[1644755152158,1.73401425,2941.8,2941.2,1.1281]
[1644755152356,0.28806874,2941.2,2941.1,3.5]
[1644755152558,0.28806874,2941.2,2941.1,4.35004]
[1644755152757,0.28806874,2941.2,2941.1,1.02004]
[1644755153556,0.28806874,2941.2,2941.1,2.62004]
[1644755154604,0.28806874,2941.2,2941.1,5.64943464]
[1644755155205,0.28806874,2941.2,2941.1,2.62004]
[1644755155808,0.28806874,2941.2,2941.1,2.45004]
[1644755156205,0.28806874,2941.2,2941.1,5.48625076]
[1644755156809,0.28806874,2941.2,2941.1,2.45004]
[1644755157963,0.28806874,2941.2,2941.1,1.45004]
[1644755158157,0.28806874,2941.2,2941.1,2.45004]
[1644755158756,0.28806874,2941.2,2941.1,1.45004]
[1644755158957,2.71435457,2941.6,2941.3,0.8499]
[1644755159158,1.44614927,2941.5,2941.4,0.8499]
[1644755159960,1.53270726,2941.6,2941.4,4.71080194]
[1644755160161,1.53270726,2941.6,2941.5,1.6997]
[1644755160361,2.97877839,2941.6,2941.5,1.6997]
[1644755160560,2.97877839,2941.6,2941.5,1.9997]
[1644755160761,2.97877839,2941.6,2941.5,6.31279034]
[1644755161261,1.53270726,2941.6,2941.5,3.2997]
[1644755162705,1.53270726,2941.6,2941.5,6.6997]
[1644755163107,1.53270726,2941.6,2941.5,9.94135053]
[1644755165107,1.53270726,2941.6,2941.5,10.11115053]
[1644755165562,2.97870664,2941.6,2941.5,10.11115053]
[1644755165960,1.53270726,2941.6,2941.5,10.11115053]
[1644755166161,1.53270726,2941.6,2941.5,5.0997]
[1644755166362,1.53270726,2941.6,2941.5,8.13419464]
[1644755166560,1.53270726,2941.6,2941.5,8.30399464]
[1644755167360,1.53270726,2941.6,2941.5,8.60399464]
[1644755167560,1.53270726,2941.6,2941.5,9.90399464]
[1644755167962,1.53270726,2941.6,2941.5,9.73419464]
[1644755168365,2.97868231,2941.6,2941.5,9.73419464]
[1644755168564,2.97868231,2941.6,2941.5,6.6997]
[1644755168764,2.97868231,2941.6,2941.5,9.73871273]
[1644755168964,2.97868231,2941.6,2941.5,6.6997]
[1644755169200,2.97868231,2941.6,2941.5,5.6997]
[1644755170809,2.97868231,2941.6,2941.5,5.3997]
[1644755180757,2.97736766,2941.6,2941.5,5.3997]
[1644755187611,2.97736766,2941.6,2941.5,5.39448]
[1644755191069,2.97736766,2941.6,2941.5,8.46044165]
[1644755191471,2.97736766,2941.6,2941.5,5.39448]